fUSD/lending_fUSD_20240329
["ID","MTS","AMOUNT","RATE_DAILY","PERIOD"]
[320932032,1711716650773,-500.0,0.00051506,120]
[320932033,1711716650783,-500.0,0.00051506,120]
[320932034,1711716650793,-528.43,0.00051506,120]
[320932035,1711716650804,-534.25,0.00051506,21]
[320932036,1711716650814,-500.0,0.00051506,120]
[320932037,1711716650824,-500.0,0.00051506,120]
[320932038,1711716650834,-500.0,0.00051506,120]
[320932039,1711716650844,-500.0,0.00051506,120]
[320932040,1711716650854,-500.0,0.00051506,120]
[320932041,1711716650864,-1337.23,0.00051506,120]
[320932042,1711716650875,-500.0,0.00051506,120]
[320932043,1711716650885,-576.41,0.00051506,120]
[320932044,1711716650894,-935.52,0.00051506,120]
[320932045,1711716650905,-500.0,0.00051506,120]
[320932046,1711716650915,-609.11,0.00051506,120]
[320932047,1711716650924,-500.0,0.00051506,120]
[320932048,1711716650933,-531.05,0.00051506,120]
[320932049,1711716650943,-500.0,0.00051506,120]
[320932050,1711716650953,-500.0,0.00051506,120]
[320932051,1711716650962,-731.96,0.00051506,120]
[320932052,1711716650972,-1153.11,0.00051506,120]
[320932053,1711716650983,-999.05,0.00051506,120]
[320932054,1711716650993,-999.22,0.00051506,120]
[320932055,1711716651004,-500.0,0.00051506,120]
[320932056,1711716651014,-500.0,0.00051506,120]
[320932057,1711716651024,-1603.08,0.00051506,120]
[320932058,1711716651034,-641.15,0.00051506,120]
[320932059,1711716651045,-586.5,0.00051506,120]
[320932060,1711716651055,-500.0,0.00051506,120]
[320932061,1711716651065,-500.0,0.00051506,120]
[320932062,1711716651075,-500.0,0.00051506,120]
[320932063,1711716651085,-616.6,0.00051506,120]
[320932064,1711716651095,-500.0,0.00051506,120]
[320932065,1711716651104,-1045.1,0.00051506,120]
[320932066,1711716651114,-500.0,0.00051506,120]
[320932067,1711716651124,-505.71,0.00051506,120]
[320932068,1711716651134,-678.59,0.00051506,120]
[320932069,1711716651144,-500.0,0.00051506,120]
[320932070,1711716651153,-500.0,0.00051506,120]
[320932071,1711716651163,-581.67,0.00051506,120]
[320932072,1711716651173,-500.0,0.00051506,120]
[320932073,1711716651182,-732.12,0.00051506,120]
[320932074,1711716651193,-509.86,0.00051506,120]
[320932075,1711716651202,-1070.64,0.00051506,120]
[320932076,1711716651212,-779.78,0.00051506,120]
[320932077,1711716651222,-500.0,0.00051506,120]
[320932078,1711716651234,-500.0,0.00051506,120]
[320932079,1711716651244,-500.0,0.00051506,120]
[320932080,1711716651254,-500.0,0.00051506,120]
[320932081,1711716651265,-1366.39,0.00051506,120]
[320932082,1711716651276,-566.51,0.00051506,120]
[320932083,1711716651286,-500.0,0.00051506,120]
[320932084,1711716651296,-1473.55,0.00051506,120]
[320932085,1711716651306,-542.47,0.00051506,120]
[320932086,1711716651318,-541.19,0.00051506,120]
[320932087,1711716651329,-500.0,0.00051506,120]
[320932088,1711716651339,-500.0,0.00051506,120]
[320932089,1711716651349,-520.06,0.00051506,120]
[320932090,1711716651360,-500.0,0.00051506,120]
[320932091,1711716651371,-500.0,0.00051506,120]
[320932092,1711716651381,-500.0,0.00051506,120]
[320932093,1711716651393,-500.0,0.00051506,120]
[320932094,1711716651404,-500.0,0.00051506,120]
[320932095,1711716651416,-500.0,0.00051506,120]
[320932096,1711716651428,-618.22,0.00051506,120]
[320932097,1711716651603,-7484.31,0.00051506,120]
[320932098,1711716651619,-708.95,0.00051506,120]
[320932099,1711716651629,-756.87,0.00051506,120]
[320932100,1711716651639,-500.0,0.00051506,120]
[320932101,1711716651648,-1441.43,0.00051506,120]
[320932102,1711716651658,-500.0,0.00051506,120]
[320932103,1711716651667,-1273.33,0.00051506,120]
[320932104,1711716651677,-674.57,0.00051506,120]
[320932105,1711716651686,-267.31111111,0.00051616,120]
[320932106,1711716651696,-158.503816,0.00051666,60]
[320932107,1711716651705,-586.09,0.00051671,120]
[320932108,1711716651715,-623.33,0.00051671,120]
[320932109,1711716651724,-592.42,0.00051671,120]
[320932110,1711716651735,-500.0,0.00051671,120]
[320932111,1711716651744,-500.0,0.00051671,120]
[320932112,1711716651753,-500.0,0.00051671,120]
[320932113,1711716651762,-500.0,0.00051671,120]
[320932114,1711716651772,-691.21,0.00051671,120]
[320932115,1711716651781,-720.43,0.00051671,120]
[320932116,1711716651791,-3679.89,0.00051671,120]
[320932117,1711716651800,-874.18,0.00051671,120]
[320932118,1711716651810,-500.0,0.00051671,120]
[320932119,1711716651820,-523.45,0.00051671,120]
[320932120,1711716651830,-2750.62,0.00051671,120]
[320932121,1711716651839,-500.0,0.00051671,120]
[320932122,1711716651849,-521.621577,0.000517,40]
[320932123,1711716651859,-153.21053773,0.00051745,84]
[320932124,1711716651869,-368.33,0.0005178,2]
[320932125,1711716651878,-1782.96,0.0005178,120]
[320932126,1711716651888,-903.7,0.0005178,120]
[320932127,1711716651898,-500.0,0.0005178,120]
[320932128,1711716651909,-606.26,0.0005178,120]
[320932129,1711716651918,-1141.6,0.0005178,120]
[320932130,1711716651929,-809.83,0.0005178,120]
[320932131,1711716651938,-502.1,0.0005178,120]
[320932132,1711716651948,-4769.79,0.0005178,120]
[320932133,1711716651957,-650.47,0.0005178,120]
[320932134,1711716651967,-500.0,0.0005178,120]
[320932135,1711716651979,-500.0,0.0005178,120]
[320932136,1711716651989,-500.0,0.0005178,120]
[320932137,1711716651999,-500.0,0.0005178,120]
[320932138,1711716652009,-528.43,0.0005178,120]
[320932139,1711716652019,-534.25,0.0005178,21]
[320932140,1711716652029,-500.0,0.0005178,120]
[320932141,1711716652038,-500.0,0.0005178,120]
[320932142,1711716652049,-500.0,0.0005178,120]
[320932143,1711716652058,-500.0,0.0005178,120]
[320932144,1711716652068,-500.0,0.0005178,120]
[320932145,1711716652078,-1337.23,0.0005178,120]
[320932146,1711716652087,-500.0,0.0005178,120]
[320932147,1711716652097,-576.41,0.0005178,120]
[320932148,1711716652107,-935.52,0.0005178,120]
[320932149,1711716652116,-500.0,0.0005178,120]
[320932150,1711716652125,-609.11,0.0005178,120]
[320932151,1711716652135,-500.0,0.0005178,120]
[320932152,1711716652145,-531.05,0.0005178,120]
[320932153,1711716652155,-500.0,0.0005178,120]
[320932154,1711716652164,-500.0,0.0005178,120]
[320932155,1711716652174,-1000.44,0.0005178,72]
[320932156,1711716652184,-731.96,0.0005178,120]
[320932157,1711716652193,-1153.11,0.0005178,120]
[320932158,1711716652202,-999.05,0.0005178,120]
[320932159,1711716652212,-999.22,0.0005178,120]
[320932160,1711716652222,-500.0,0.0005178,120]
[320932161,1711716652233,-500.0,0.0005178,120]
[320932162,1711716652243,-1603.08,0.0005178,120]
[320932163,1711716652253,-641.15,0.0005178,120]
[320932164,1711716652263,-500.0,0.0005178,120]
[320932165,1711716652273,-329.3242811,0.0005178,120]
[320932166,1711716652283,-500.0,0.0005178,120]
[320932167,1711716652293,-616.6,0.0005178,120]
[320932168,1711716652303,-500.0,0.0005178,120]
[320932169,1711716652314,-1045.1,0.0005178,120]
[320932170,1711716652325,-500.0,0.0005178,120]
[320932171,1711716652335,-505.71,0.0005178,120]
[320932172,1711716652345,-678.59,0.0005178,120]
[320932173,1711716652355,-500.0,0.0005178,120]
[320932174,1711716652365,-500.0,0.0005178,120]
[320932175,1711716652374,-581.67,0.0005178,120]
[320932176,1711716652384,-500.0,0.0005178,120]
[320932177,1711716652394,-732.12,0.0005178,120]
[320932178,1711716652404,-509.86,0.0005178,120]
[320932179,1711716652413,-1070.64,0.0005178,120]
[320932180,1711716652422,-779.78,0.0005178,120]
[320932181,1711716652432,-500.0,0.0005178,120]
[320932182,1711716652442,-500.0,0.0005178,120]
[320932183,1711716652451,-500.0,0.0005178,120]
[320932184,1711716652460,-500.0,0.0005178,120]
[320932185,1711716652470,-1366.39,0.0005178,120]
[320932186,1711716652480,-566.51,0.0005178,120]
[320932187,1711716652489,-500.0,0.0005178,120]
[320932188,1711716652499,-1473.55,0.0005178,120]
[320932189,1711716652509,-542.47,0.0005178,120]
[320932190,1711716652518,-541.19,0.0005178,120]
[320932191,1711716652527,-500.0,0.0005178,120]
[320932192,1711716652537,-500.0,0.0005178,120]
[320932193,1711716652546,-520.06,0.0005178,120]
[320932194,1711716652555,-500.0,0.0005178,120]
[320932195,1711716652564,-500.0,0.0005178,120]
[320932196,1711716652574,-500.0,0.0005178,120]
[320932197,1711716652584,-500.0,0.0005178,120]
[320932198,1711716652593,-500.0,0.0005178,120]
[320932199,1711716652602,-500.0,0.0005178,120]
[320932200,1711716652611,-618.22,0.0005178,120]
[320932201,1711716652620,-7484.31,0.0005178,120]
[320932202,1711716652630,-708.95,0.0005178,120]
[320932203,1711716652639,-756.87,0.0005178,120]
[320932204,1711716652649,-500.0,0.0005178,120]
[320932205,1711716652658,-1441.43,0.0005178,120]
[320932206,1711716652667,-500.0,0.0005178,120]
[320932207,1711716652676,-1273.33,0.0005178,120]
[320932208,1711716652686,-674.57,0.0005178,120]
[320932209,1711716652695,-500.0,0.000518,22]
[320932210,1711716652704,-500.0,0.000518,22]
[320932211,1711716652713,-500.0,0.000518,22]
[320932212,1711716652722,-500.0,0.000518,22]
[320932213,1711716652732,-500.0,0.000518,22]
[320932214,1711716652742,-500.0,0.000518,32]
[320932215,1711716652753,-154.69988666,0.00051809,60]
[320932216,1711716652762,-150.0,0.000519,10]
[320932217,1711716652772,-586.09,0.00051945,120]
[320932218,1711716652781,-623.33,0.00051945,120]
[320932219,1711716652790,-592.42,0.00051945,120]
[320932220,1711716652799,-500.0,0.00051945,120]
[320932221,1711716652808,-500.0,0.00051945,120]
[320932222,1711716652818,-500.0,0.00051945,120]
[320932223,1711716652827,-500.0,0.00051945,120]
[320932224,1711716652837,-691.21,0.00051945,120]
[320932225,1711716652846,-720.43,0.00051945,120]
[320932226,1711716652855,-3679.89,0.00051945,120]
[320932227,1711716652865,-874.18,0.00051945,120]
[320932228,1711716652874,-500.0,0.00051945,120]
[320932229,1711716652884,-523.45,0.00051945,120]
[320932230,1711716652893,-2750.62,0.00051945,120]
[320932231,1711716652903,-500.0,0.00051945,120]
[320932232,1711716652913,-5000.0,0.00052,14]
[320932233,1711716652923,-31589.0,0.00052,120]
[320932234,1711716652932,-1000.0,0.00052,32]
[320932235,1711716652941,-750.0,0.00052,120]
[320932236,1711716652951,-750.0,0.00052,120]
[320932237,1711716652960,-750.0,0.00052,120]
[320932238,1711716652970,-500.0,0.00052054,120]
[320932239,1711716652981,-504.70175859,0.00052054,120]
[320932240,1711716652991,-1782.96,0.00052054,120]
[320932241,1711716653000,-903.7,0.00052054,120]
[320932242,1711716653009,-500.0,0.00052054,120]
[320932243,1711716653019,-606.26,0.00052054,120]
[320932244,1711716653028,-1141.6,0.00052054,120]
[320932245,1711716653036,-809.83,0.00052054,120]
[320932246,1711716653046,-502.1,0.00052054,120]
[320932247,1711716653055,-4769.79,0.00052054,120]
[320932248,1711716653065,-650.47,0.00052054,120]
[320932249,1711716653075,-500.0,0.00052054,120]
[320932250,1711716653085,-294.05090353,0.00052054,120]
[320932251,1711716653095,-500.0,0.00052054,120]
[320932252,1711716653105,-500.0,0.00052054,120]
[320932253,1711716653115,-528.43,0.00052054,120]
[320932254,1711716653125,-534.25,0.00052054,21]
[320932255,1711716653134,-500.0,0.00052054,120]
[320932256,1711716653144,-500.0,0.00052054,120]
[320932257,1711716653154,-500.0,0.00052054,120]
[320932258,1711716653164,-500.0,0.00052054,120]
[320932259,1711716653173,-500.0,0.00052054,120]
[320932260,1711716653182,-1337.23,0.00052054,120]
[320932261,1711716653192,-500.0,0.00052054,120]
[320932262,1711716653201,-576.41,0.00052054,120]
[320932263,1711716653210,-935.52,0.00052054,120]
[320932264,1711716653220,-500.0,0.00052054,120]
[320932265,1711716653231,-609.11,0.00052054,120]
[320932266,1711716653240,-500.0,0.00052054,120]
[320932267,1711716653249,-531.05,0.00052054,120]
[320932268,1711716653258,-500.0,0.00052054,120]
[320932269,1711716653267,-500.0,0.00052054,120]
[320932270,1711716653276,-731.96,0.00052054,120]
[320932271,1711716653286,-1153.11,0.00052054,120]
[320932272,1711716653295,-999.05,0.00052054,120]
[320932273,1711716653305,-999.22,0.00052054,120]
[320932274,1711716653315,-500.0,0.00052054,120]
[320932275,1711716653325,-500.0,0.00052054,120]
[320932276,1711716653337,-1603.08,0.00052054,120]
[320932277,1711716653346,-641.15,0.00052054,120]
[320932278,1711716653356,-500.0,0.00052054,120]
[320932279,1711716653367,-500.0,0.00052054,120]
[320932280,1711716653377,-616.6,0.00052054,120]
[320932281,1711716653387,-500.0,0.00052054,120]
[320932282,1711716653397,-1045.1,0.00052054,120]
[320932283,1711716653407,-500.0,0.00052054,120]
[320932284,1711716653416,-505.71,0.00052054,120]
[320932285,1711716653427,-678.59,0.00052054,120]
[320932286,1711716653437,-500.0,0.00052054,120]
[320932287,1711716653446,-500.0,0.00052054,120]
[320932288,1711716653456,-581.67,0.00052054,120]
[320932289,1711716653466,-500.0,0.00052054,120]
[320932290,1711716653476,-732.12,0.00052054,120]
[320932291,1711716653486,-509.86,0.00052054,120]
[320932292,1711716653495,-1070.64,0.00052054,120]
[320932293,1711716653504,-779.78,0.00052054,120]
[320932294,1711716653514,-500.0,0.00052054,120]
[320932295,1711716653524,-500.0,0.00052054,120]
[320932296,1711716653533,-500.0,0.00052054,120]
[320932297,1711716653543,-500.0,0.00052054,120]
[320932298,1711716653552,-1366.39,0.00052054,120]
[320932299,1711716653562,-566.51,0.00052054,120]
[320932300,1711716653572,-500.0,0.00052054,120]
[320932301,1711716653581,-1473.55,0.00052054,120]
[320932302,1711716653591,-541.19,0.00052054,120]
[320932303,1711716653600,-542.47,0.00052054,120]
[320932304,1711716653610,-500.0,0.00052054,120]
[320932305,1711716653620,-500.0,0.00052054,120]
[320932306,1711716653629,-520.06,0.00052054,120]
[320932307,1711716653639,-500.0,0.00052054,120]
[320932308,1711716653648,-500.0,0.00052054,120]
[320932309,1711716653658,-500.0,0.00052054,120]
[320932310,1711716653668,-500.0,0.00052054,120]
[320932311,1711716653677,-500.0,0.00052054,120]
[320932312,1711716653686,-500.0,0.00052054,120]
[320932313,1711716653696,-618.22,0.00052054,120]
[320932314,1711716653705,-7484.31,0.00052054,120]
[320932315,1711716653715,-708.95,0.00052054,120]
[320932316,1711716653725,-756.87,0.00052054,120]
[320932317,1711716653735,-500.0,0.00052054,120]
[320932318,1711716653746,-1441.43,0.00052054,120]
[320932319,1711716653757,-500.0,0.00052054,120]
[320932320,1711716653769,-1273.33,0.00052054,120]
[320932321,1711716653780,-674.57,0.00052054,120]
[320932322,1711716653790,-1000.0,0.00052055,120]
[320932323,1711716653801,-8284.62,0.00052055,2]
[320932324,1711716653810,-1000.0,0.00052199,120]
[320932325,1711716653820,-586.09,0.00052219,120]
[320932326,1711716653830,-623.33,0.00052219,120]
[320932327,1711716653840,-592.42,0.00052219,120]
[320932328,1711716653850,-500.0,0.00052219,120]
[320932329,1711716653860,-500.0,0.00052219,120]
[320932330,1711716653869,-500.0,0.00052219,120]
[320932331,1711716653879,-500.0,0.00052219,120]
[320932332,1711716653888,-691.21,0.00052219,120]
[320932333,1711716653898,-720.43,0.00052219,120]
[320932334,1711716653907,-3679.89,0.00052219,120]
[320932335,1711716653953,-874.18,0.00052219,120]
[320932336,1711716653963,-500.0,0.00052219,120]
[320932337,1711716653973,-523.45,0.00052219,120]
[320932338,1711716653984,-2750.62,0.00052219,120]
[320932339,1711716653995,-500.0,0.00052219,120]
[320932340,1711716654004,-267.31111111,0.00052219,120]
[320932341,1711716654014,-1782.96,0.00052328,120]
[320932342,1711716654023,-903.7,0.00052328,120]
[320932343,1711716654033,-500.0,0.00052328,120]
[320932344,1711716654042,-606.26,0.00052328,120]
[320932345,1711716654052,-1141.6,0.00052328,120]
[320932346,1711716654061,-809.83,0.00052328,120]
[320932347,1711716654071,-502.1,0.00052328,120]
[320932348,1711716654080,-4769.79,0.00052328,120]
[320932349,1711716654090,-650.47,0.00052328,120]
[320932350,1711716654100,-500.0,0.00052328,120]
[320932351,1711716654110,-500.0,0.00052328,120]
[320932352,1711716654120,-500.0,0.00052328,120]
[320932353,1711716654130,-528.43,0.00052328,120]
[320932354,1711716654139,-534.25,0.00052328,21]
[320932355,1711716654149,-500.0,0.00052328,120]
[320932356,1711716654159,-500.0,0.00052328,120]
[320932357,1711716654169,-500.0,0.00052328,120]
[320932358,1711716654179,-500.0,0.00052328,120]
[320932359,1711716654189,-294.59210368,0.00052328,120]
[320932360,1711716654199,-1337.23,0.00052328,120]
[320932361,1711716654208,-500.0,0.00052328,120]
[320932362,1711716654218,-576.41,0.00052328,120]
[320932363,1711716654227,-935.52,0.00052328,120]
[320932364,1711716654238,-500.0,0.00052328,120]
[320932365,1711716654247,-609.11,0.00052328,120]
[320932366,1711716654256,-500.0,0.00052328,120]
[320932367,1711716654266,-531.05,0.00052328,120]
[320932368,1711716654275,-500.0,0.00052328,120]
[320932369,1711716654285,-500.0,0.00052328,120]
[320932370,1711716654294,-731.96,0.00052328,120]
[320932371,1711716654304,-1153.11,0.00052328,120]
[320932372,1711716654316,-999.05,0.00052328,120]
[320932373,1711716654326,-999.22,0.00052328,120]
[320932374,1711716654336,-500.0,0.00052328,120]
[320932375,1711716654345,-1603.08,0.00052328,120]
[320932376,1711716654356,-500.0,0.00052328,120]
[320932377,1711716654365,-641.15,0.00052328,120]
[320932378,1711716654376,-500.0,0.00052328,120]
[320932379,1711716654385,-616.6,0.00052328,120]
[320932380,1711716654397,-500.0,0.00052328,120]
[320932381,1711716654406,-500.0,0.00052328,120]
[320932382,1711716654416,-1045.1,0.00052328,120]
[320932383,1711716654425,-500.0,0.00052328,120]
[320932384,1711716654434,-505.71,0.00052328,120]
[320932385,1711716654444,-678.59,0.00052328,120]
[320932386,1711716654453,-500.0,0.00052328,120]
[320932387,1711716654463,-500.0,0.00052328,120]
[320932388,1711716654472,-581.67,0.00052328,120]
[320932389,1711716654483,-500.0,0.00052328,120]
[320932390,1711716654493,-732.12,0.00052328,120]
[320932391,1711716654502,-509.86,0.00052328,120]
[320932392,1711716654511,-1070.64,0.00052328,120]
[320932393,1711716654520,-779.78,0.00052328,120]
[320932394,1711716654530,-500.0,0.00052328,120]
[320932395,1711716654539,-500.0,0.00052328,120]
[320932396,1711716654549,-500.0,0.00052328,120]
[320932397,1711716654559,-500.0,0.00052328,120]
[320932398,1711716654568,-1366.39,0.00052328,120]
[320932399,1711716654577,-566.51,0.00052328,120]
[320932400,1711716654587,-500.0,0.00052328,120]
[320932401,1711716654597,-1473.55,0.00052328,120]
[320932402,1711716654606,-541.19,0.00052328,120]
[320932403,1711716654615,-542.47,0.00052328,120]
[320932404,1711716654624,-500.0,0.00052328,120]
[320932405,1711716654633,-500.0,0.00052328,120]
[320932406,1711716654642,-520.06,0.00052328,120]
[320932407,1711716654651,-323.19163209,0.00052328,120]
[320932408,1711716654660,-500.0,0.00052328,120]
[320932409,1711716654669,-416.16,0.00052328,120]
[320932410,1711716654678,-500.0,0.00052328,120]
[320932411,1711716654687,-500.0,0.00052328,120]
[320932412,1711716654697,-500.0,0.00052328,120]
[320932413,1711716654705,-618.22,0.00052328,120]
[320932414,1711716654714,-7484.31,0.00052328,120]
[320932415,1711716654723,-708.95,0.00052328,120]
[320932416,1711716654733,-756.87,0.00052328,120]
[320932417,1711716654742,-500.0,0.00052328,120]
[320932418,1711716654751,-1441.43,0.00052328,120]
[320932419,1711716654759,-392.72834859,0.00052328,120]
[320932420,1711716654769,-1273.33,0.00052328,120]
[320932421,1711716654779,-674.57,0.00052328,120]
[320932422,1711716654788,-1000.0,0.00052343,120]
[320932423,1711716654797,-157.032921,0.00052348,113]
[320932424,1711716654806,-346.065842,0.00052448,112]
[320932425,1711716654816,-1000.0,0.00052487,120]
[320932426,1711716654824,-586.09,0.00052493,120]
[320932427,1711716654834,-623.33,0.00052493,120]
[320932428,1711716654843,-592.42,0.00052493,120]
[320932429,1711716654852,-500.0,0.00052493,120]
[320932430,1711716654861,-500.0,0.00052493,120]
[320932431,1711716654869,-500.0,0.00052493,120]
[320932432,1711716654879,-500.0,0.00052493,120]
[320932433,1711716654887,-691.21,0.00052493,120]
[320932434,1711716654896,-720.43,0.00052493,120]
[320932435,1711716654906,-3679.89,0.00052493,120]
[320932436,1711716654915,-874.18,0.00052493,120]
[320932437,1711716654924,-500.0,0.00052493,120]
[320932438,1711716654933,-523.45,0.00052493,120]
[320932439,1711716654942,-2750.62,0.00052493,120]
[320932440,1711716654951,-500.0,0.00052493,120]
[320932441,1711716654960,-851.77149494,0.00052511,2]
[320932442,1711716654969,-19270.85704163,0.00052511,2]
[320932443,1711716654978,-151.0,0.00052521,120]
[320932444,1711716654988,-1782.96,0.00052602,120]
[320932445,1711716654997,-903.7,0.00052602,120]
[320932446,1711716655005,-500.0,0.00052602,120]
[320932447,1711716655014,-606.26,0.00052602,120]
[320932448,1711716655023,-1141.6,0.00052602,120]
[320932449,1711716655032,-809.83,0.00052602,120]
[320932450,1711716655041,-502.1,0.00052602,120]
[320932451,1711716655050,-4769.79,0.00052602,120]
[320932452,1711716655059,-650.47,0.00052602,120]
[320932453,1711716655068,-500.0,0.00052602,120]
[320932454,1711716655077,-500.0,0.00052602,120]
[320932455,1711716655086,-500.0,0.00052602,120]
[320932456,1711716655095,-528.43,0.00052602,120]
[320932457,1711716655105,-534.25,0.00052602,21]
[320932458,1711716655114,-500.0,0.00052602,120]
[320932459,1711716655123,-500.0,0.00052602,120]
[320932460,1711716655133,-500.0,0.00052602,120]
[320932461,1711716655142,-500.0,0.00052602,120]
[320932462,1711716655152,-1337.23,0.00052602,120]
[320932463,1711716655162,-500.0,0.00052602,120]
[320932464,1711716655171,-576.41,0.00052602,120]
[320932465,1711716655180,-935.52,0.00052602,120]
[320932466,1711716655190,-500.0,0.00052602,120]
[320932467,1711716655199,-609.11,0.00052602,120]
[320932468,1711716655208,-500.0,0.00052602,120]
[320932469,1711716655216,-531.05,0.00052602,120]
[320932470,1711716655225,-500.0,0.00052602,120]
[320932471,1711716655236,-500.0,0.00052602,120]
[320932472,1711716655245,-1000.44,0.00052602,120]
[320932473,1711716655255,-731.96,0.00052602,120]
[320932474,1711716655264,-1153.11,0.00052602,120]
[320932475,1711716655273,-999.05,0.00052602,120]
[320932476,1711716655282,-999.22,0.00052602,120]
[320932477,1711716655291,-500.0,0.00052602,120]
[320932478,1711716655301,-1603.08,0.00052602,120]
[320932479,1711716655310,-500.0,0.00052602,120]
[320932480,1711716655324,-641.15,0.00052602,120]
[320932481,1711716655333,-500.0,0.00052602,120]
[320932482,1711716655342,-616.6,0.00052602,120]
[320932483,1711716655352,-500.0,0.00052602,120]
[320932484,1711716655361,-500.0,0.00052602,120]
[320932485,1711716655371,-1045.1,0.00052602,120]
[320932486,1711716655380,-500.0,0.00052602,120]
[320932487,1711716655389,-505.71,0.00052602,120]
[320932488,1711716655402,-678.59,0.00052602,120]
[320932489,1711716655412,-568.90933747,0.00052602,120]
[320932490,1711716655421,-500.0,0.00052602,120]
[320932491,1711716655430,-581.67,0.00052602,120]
[320932492,1711716655439,-500.0,0.00052602,120]
[320932493,1711716655448,-732.12,0.00052602,120]
[320932494,1711716655457,-509.86,0.00052602,120]
[320932495,1711716655466,-1070.64,0.00052602,120]
[320932496,1711716655475,-779.78,0.00052602,120]
[320932497,1711716655484,-500.0,0.00052602,120]
[320932498,1711716655493,-500.0,0.00052602,120]
[320932499,1711716655503,-261.36882454,0.00052602,120]
[320932500,1711716655512,-500.0,0.00052602,120]
[320932501,1711716655521,-1366.39,0.00052602,120]
[320932502,1711716655530,-566.51,0.00052602,120]
[320932503,1711716655539,-500.0,0.00052602,120]
[320932504,1711716655548,-1473.55,0.00052602,120]
[320932505,1711716655557,-541.19,0.00052602,120]
[320932506,1711716655567,-542.47,0.00052602,120]
[320932507,1711716655576,-500.0,0.00052602,120]
[320932508,1711716655585,-500.0,0.00052602,120]
[320932509,1711716655595,-520.06,0.00052602,120]
[320932510,1711716655604,-500.0,0.00052602,120]
[320932511,1711716655614,-500.0,0.00052602,120]
[320932512,1711716655623,-500.0,0.00052602,120]
[320932513,1711716655632,-500.0,0.00052602,120]
[320932514,1711716655642,-618.22,0.00052602,120]
[320932515,1711716655653,-7484.31,0.00052602,120]
[320932516,1711716655661,-708.95,0.00052602,120]
[320932517,1711716655670,-756.87,0.00052602,120]
[320932518,1711716655680,-500.0,0.00052602,120]
[320932519,1711716655689,-1441.43,0.00052602,120]
[320932520,1711716655698,-1273.33,0.00052602,120]
[320932521,1711716655707,-674.57,0.00052602,120]
[320932522,1711716655717,-1000.0,0.00052632,120]
[320932523,1711716655726,-586.09,0.00052767,120]
[320932524,1711716655736,-623.33,0.00052767,120]
[320932525,1711716655745,-592.42,0.00052767,120]
[320932526,1711716655755,-500.0,0.00052767,120]
[320932527,1711716655764,-500.0,0.00052767,120]
[320932528,1711716655773,-500.0,0.00052767,120]
[320932529,1711716655782,-500.0,0.00052767,120]
[320932530,1711716655790,-691.21,0.00052767,120]
[320932531,1711716655800,-720.43,0.00052767,120]